[Event "Lozovatsky Memorial-A 2019"]
[Site "Chelyabinsk"]
[Date "2019.01.18"]
[Round "7"]
[White "Drygalov, Andrey"]
[Black "Gutenev, Alexander"]
[Result "1/2-1/2"]
[ECO "B67"]
[WhiteElo "2485"]
[BlackElo "2456"]
[Annotator "RC"]
[PlyCount "51"]
[EventDate "2019.01.12"]
[EventType "tourn"]
[EventCountry "RUS"]
[SourceTitle "playchess.com"]
[Source "ChessBase"]
[SourceQuality "1"]
[TimeControl "5400+30"]

1. e4 {[%emt 0:00:00]} c5 {[%emt 0:06:57]} 2. Nf3 {[%emt 0:00:00]} Nc6 {[%emt 0:00:09]} 3. d4 {[%emt 0:00:00]} cxd4 4. Nxd4 {[%emt 0:00:00]} Nf6 {[%emt 0:01:22]} 5. Nc3 {[%emt 0:00:00]} d6 {[%emt 0:00:37]} 6. Bg5 {[%emt 0:00:06]} e6 {[%emt 0:02:02]} 7. Qd2 {[%emt 0:01:12]} a6 {[%emt 0:00:23]} 8. O-O-O {[%emt 0:00:19]} Bd7 {[%emt 0:00:05]} 9. f4 {[%emt 0:00:52]} h6 {[%emt 0:07:02]} 10. Bh4 {[%emt 0:00:24]} Nxe4 {[%emt 0:00:05]} 11. Qe1 {[%emt 0:00:07]} Nf6 {[%emt 0:00:05]} 12. Nf5 {[%emt 0:00:04]} Qa5 {[%emt 0:00:05]} 13. Nxd6+ {[%emt 0:00:07]} Bxd6 {[%emt 0:00:05]} 14. Rxd6 {[%emt 0:00:06]} O-O-O {[%emt 0:00:14]} 15. Qd2 {[%emt 0:33:54]} Qc7 {[%emt 0:19:52]} 16. Be2 {[%emt 0:13:13]} Ne7 {[%emt 0:01:12]} 17. Rd1 {[%emt 0:02:45]} Nf5 {[%emt 0:02:22]} 18. Bxf6 {[%emt 0:00:21]} gxf6 {[%emt 0:00:05]} 19. Rd3 {[%emt 0:00:05]} Bc6 {[%emt 0:00:09]} 20. g3 {[%emt 0:07:58]} Rxd3 {[%emt 0:05:59]} 21. Qxd3 {[%emt 0:00:32]} Rd8 {[%emt 0:01:18]} 22. Qxd8+ {[%emt 0:01:39]} Qxd8 {[%emt 0:00:07]} 23. Rxd8+ {[%emt 0:00:03]} Kxd8 {[%emt 0:00:10]} 24. Kd2 {[%emt 0:02:20]} Ke7 {[%emt 0:11:51]} 25. Nd1 {[%emt 0:08:12]} Nd6 {[%emt 0:07:47]} 26. Ne3 {[%emt 0:04:57]} 1/2-1/2

[Event "Lozovatsky Memorial-A 2019"]
[Site "Chelyabinsk"]
[Date "2019.01.18"]
[Round "7"]
[White "Slizhevsky, Alexander"]
[Black "Korneev, Oleg"]
[Result "0-1"]
[ECO "C67"]
[WhiteElo "2428"]
[BlackElo "2545"]
[Annotator "ChessBase"]
[PlyCount "142"]
[EventDate "2019.01.12"]
[EventType "tourn"]
[EventCountry "RUS"]
[SourceTitle "playchess.com"]
[Source "ChessBase"]
[SourceQuality "1"]
[TimeControl "5400+30"]

1. e4 {[%emt 0:00:00]} e5 {[%emt 0:05:57]} 2. Nf3 {[%emt 0:00:00]} Nc6 {[%emt 0:00:10]} 3. Bb5 {[%emt 0:00:06]} Nf6 {[%emt 0:00:04]} 4. O-O {[%emt 0:00:28]} Nxe4 {[%emt 0:04:12]} 5. d4 {[%emt 0:00:37]} Nd6 {[%emt 0:02:22]} 6. Bxc6 {[%emt 0:00:15]} dxc6 {[%emt 0:00:02]} 7. dxe5 {[%emt 0:00:09]} Nf5 {[%emt 0:00:02]} 8. Qxd8+ {[%emt 0:00:15]} Kxd8 {[%emt 0:00:03]} 9. h3 {[%emt 0:00:29]} Ke8 {[%emt 0:00:20]} 10. Nc3 {[%emt 0:00:58]} h5 {[%emt 0:02:21]} 11. Ne2 {[%emt 0:01:10]} Be7 {[%emt 0:01:46]} 12. Bg5 {[%emt 0:02:57]} Be6 {[%emt 0:05:11]} 13. Nf4 {[%emt 0:01:00]} Bd5 {[%emt 0:04:28]} 14. Nxd5 {[%emt 0:00:30]} cxd5 {[%emt 0:00:30]} 15. Rad1 {[%emt 0:00:30]} c6 {[%emt 0:00:30]} 16. Rd3 {[%emt 0:00:30]} h4 {[%emt 0:00:30]} 17. Re1 {[%emt 0:00:30]} Bxg5 {[%emt 0:00:30]} 18. Nxg5 {[%emt 0:00:30]} Ke7 {[%emt 0:00:30]} 19. Rf3 {[%emt 0:00:30]} g6 {[%emt 0:22:21]} 20. g4 {[%emt 0:25:22]} hxg3 {[%emt 0:00:54]} 21. fxg3 {[%emt 0:00:05]} Rh5 {[%emt 0:09:36]} 22. h4 {[%emt 0:00:39]} Rxg5 {[%emt 0:00:04]} 23. hxg5 {[%emt 0:00:08]} Nd4 {[%emt 0:00:01]} 24. Rd3 {[%emt 0:04:30]} Ne6 {[%emt 0:00:54]} 25. Red1 {[%emt 0:02:58]} Rh8 {[%emt 0:06:20]} 26. c4 {[%emt 0:07:39]} d4 {[%emt 0:00:19]} 27. Rb3 {[%emt 0:00:20]} Rb8 {[%emt 0:09:15]} 28. c5 {[%emt 0:06:57]} Nxc5 {[%emt 0:00:50]} 29. Ra3 {[%emt 0:00:04]} Rd8 {[%emt 0:03:15]} 30. Rxa7 {[%emt 0:06:39]} Rd7 {[%emt 0:02:07]} 31. Kg2 {[%emt 0:13:35]} Ke6 {[%emt 0:01:05]} 32. Kf3 {[%emt 0:03:33]} Kxe5 {[%emt 0:01:10]} 33. Rc1 {[%emt 0:02:07]} Kd5 {[%emt 0:03:21]} 34. b4 {[%emt 0:01:39]} Ne4 {[%emt 0:02:02]} 35. Ke2 {[%emt 0:05:31]} Re7 {[%emt 0:02:57]} 36. Kd3 {[%emt 0:02:23]} Nc3 {[%emt 0:02:26]} 37. Ra5+ {[%emt 0:03:42]} b5 {[%emt 0:00:17]} 38. Ra6 {[%emt 0:00:07]} Re3+ {[%emt 0:02:38]} 39. Kd2 {[%emt 0:03:59]} Ne4+ {[%emt 0:01:05]} 40. Kc2 {[%emt 0:00:14]} d3+ {[%emt 0:00:21]} 41. Kb2 {[%emt 0:00:35]} Re2+ {[%emt 0:00:47]} 42. Kb3 {[%emt 0:00:48]} Kd4 {[%emt 0:03:47]} 43. Ra7 {[%emt 0:03:58]} Nd2+ {[%emt 0:00:29]} 44. Kb2 {[%emt 0:00:07]} Nc4+ {[%emt 0:00:14]} 45. Kb1 {[%emt 0:00:23]} d2 {[%emt 0:03:48]} 46. Rd7+ {[%emt 0:00:22]} Ke3 {[%emt 0:00:20]} 47. Re7+ {[%emt 0:02:33]} Kf2 {[%emt 0:00:14]} 48. Rxf7+ {[%emt 0:00:11]} Kg2 {[%emt 0:00:57]} 49. Rd1 {[%emt 0:00:30]} Ne3 {[%emt 0:00:28]} 50. Re7 {[%emt 0:00:58]} Kf2 {[%emt 0:00:19]} 51. Rxe3 {[%emt 0:00:33]} Kxe3 {[%emt 0:00:04]} 52. Kc2 {[%emt 0:00:15]} Rg2 {[%emt 0:00:56]} 53. Rf1 {[%emt 0:00:41]} Ke2 {[%emt 0:00:36]} 54. Rd1 {[%emt 0:00:05]} Kf3 {[%emt 0:00:40]} 55. Rf1+ {[%emt 0:01:09]} Rf2 {[%emt 0:00:15]} 56. Rh1 {[%emt 0:00:24]} Kg4 {[%emt 0:00:46]} 57. Rh4+ {[%emt 0:00:44]} Kxg5 {[%emt 0:00:10]} 58. Rd4 {[%emt 0:00:24]} d1=Q+ {[%emt 0:00:14]} 59. Kxd1 {[%emt 0:00:03]} Rxa2 {[%emt 0:00:04]} 60. Kc1 {[%emt 0:00:53]} Rg2 {[%emt 0:01:12]} 61. Rd6 {[%emt 0:00:12]} Rxg3 {[%emt 0:00:13]} 62. Rxc6 {[%emt 0:00:15]} Rf3 {[%emt 0:00:19]} 63. Kd2 {[%emt 0:00:32]} Rf4 {[%emt 0:00:42]} 64. Rc5+ {[%emt 0:00:35]} Rf5 {[%emt 0:00:02]} 65. Rc6 {[%emt 0:00:15]} Kh5 {[%emt 0:01:14]} 66. Ke3 {[%emt 0:01:21]} g5 {[%emt 0:00:05]} 67. Rc5 {[%emt 0:00:27]} Kg4 {[%emt 0:00:11]} 68. Rc1 {[%emt 0:00:20]} Rf4 {[%emt 0:00:18]} 69. Rg1+ {[%emt 0:00:22]} Kf5 {[%emt 0:00:10]} 70. Rb1 {[%emt 0:00:12]} g4 {[%emt 0:00:07]} 71. Rc1 {[%emt 0:00:29]} Re4+ {[%emt 0:00:17]} 0-1